bitfinex/quotes_BTCUSD_20251031
["timestamp","ask_amount","ask_price","bid_price","bid_amount"]
[1761911137881,0.0002,109830.0,109820.0,1.46169613]
[1761911138970,0.0002,109830.0,109820.0,1.46534486]
[1761911139381,0.0002,109830.0,109820.0,1.12534486]
[1761911139595,0.0002,109830.0,109820.0,1.46534486]
[1761911140921,0.0002,109830.0,109820.0,0.66850909]
[1761911141171,0.0002,109830.0,109820.0,0.18352133]
[1761911141378,0.0002,109830.0,109820.0,0.57869008]
[1761911141817,0.0002,109830.0,109820.0,0.18352133]
[1761911142023,0.0002,109830.0,109820.0,0.57869008]
[1761911142200,0.0002,109830.0,109820.0,0.64553338]
[1761911142425,0.00042188,109830.0,109820.0,0.64553338]
[1761911142635,0.00042188,109830.0,109820.0,0.25036463]
[1761911142864,0.00042188,109830.0,109820.0,0.64553338]
[1761911143076,0.00042188,109830.0,109820.0,1.13052114]
[1761911143488,0.00042188,109830.0,109820.0,0.73589259]
[1761911145462,0.00042188,109830.0,109820.0,0.34118364]
[1761911145673,0.00042188,109830.0,109820.0,0.73589259]
[1761911150236,0.00042188,109830.0,109820.0,0.73954141]
[1761911152022,0.00042188,109830.0,109820.0,0.88884141]
[1761911153304,0.00042188,109830.0,109820.0,0.73954141]
[1761911157870,0.00042188,109830.0,109820.0,0.88884141]
[1761911160069,0.00042188,109830.0,109820.0,0.18317015]
[1761911160291,0.00042188,109830.0,109820.0,0.17952133]
[1761911160977,0.00042188,109830.0,109820.0,0.19519546]
[1761911161377,0.00042188,109830.0,109820.0,0.17952133]
[1761911162639,0.00042188,109830.0,109820.0,0.59244189]
[1761911162846,0.00042188,109830.0,109820.0,0.57423028]
[1761911164657,0.00042188,109830.0,109820.0,0.66404929]
[1761911165903,0.00042188,109830.0,109820.0,0.27298914]
[1761911166147,0.00042188,109830.0,109820.0,0.66769809]
[1761911166727,1.012e-05,109830.0,109820.0,0.66769809]
[1761911171644,1.012e-05,109830.0,109820.0,0.66404929]
[1761911172482,1.012e-05,109830.0,109820.0,0.81334929]
[1761911181466,1.012e-05,109830.0,109820.0,0.41864034]
[1761911181929,1.012e-05,109830.0,109820.0,0.81334929]
[1761911184010,1.012e-05,109830.0,109820.0,0.66278929]
[1761911184228,1.012e-05,109830.0,109820.0,0.26808034]
[1761911184673,1.012e-05,109830.0,109820.0,0.66278929]
[1761911184906,1.012e-05,109830.0,109820.0,0.26808034]
[1761911185136,1.012e-05,109830.0,109820.0,0.66278929]
[1761911193223,1.012e-05,109830.0,109820.0,0.26808034]
[1761911194762,1.012e-05,109830.0,109820.0,0.35789935]
[1761911194968,1.012e-05,109830.0,109820.0,0.26808034]
[1761911195348,1.012e-05,109830.0,109820.0,0.66278929]
[1761911199391,0.54656804,109870.0,109840.0,0.12745812]
[1761911199599,2.12746414,109860.0,109840.0,0.15536812]
[1761911199803,0.13111298,109860.0,109850.0,0.03501]
[1761911200032,0.13111298,109860.0,109850.0,0.05165]
[1761911200668,0.21075338,109860.0,109850.0,0.05165]
[1761911201032,0.21985587,109860.0,109850.0,0.05165]
[1761911201191,0.22185587,109860.0,109850.0,0.05165]
[1761911201618,0.22885587,109860.0,109850.0,0.05165]
[1761911201823,0.14921547,109860.0,109850.0,0.05165]
[1761911202061,0.14221547,109860.0,109850.0,0.05165]
[1761911202485,0.14921547,109860.0,109850.0,0.05265]
[1761911202680,0.14721547,109860.0,109850.0,0.05265]
[1761911202874,0.14221547,109860.0,109850.0,0.05165]
[1761911203267,0.14721547,109860.0,109850.0,0.05265]
[1761911204065,0.21022859,109860.0,109850.0,0.05265]
[1761911205421,0.21022859,109860.0,109850.0,0.18009651]
[1761911205602,0.54185003,109860.0,109850.0,0.18009651]
[1761911205830,0.54251543,109860.0,109850.0,0.05265]
[1761911206218,0.54251543,109860.0,109850.0,0.18009651]
[1761911207057,0.14788087,109860.0,109850.0,0.18009651]
[1761911207234,0.62094358,109860.0,109850.0,0.18009651]
[1761911207440,0.01131424,109860.0,109850.0,0.18009651]
[1761911207645,0.13874915,109860.0,109850.0,0.18009651]
[1761911207856,0.01131424,109860.0,109850.0,0.18009651]
[1761911208059,0.0076654,109860.0,109850.0,0.18009651]
[1761911208245,0.13510031,109860.0,109850.0,0.18009651]
[1761911208643,0.0076654,109860.0,109850.0,0.18009651]
[1761911209227,0.13510031,109860.0,109850.0,0.18009651]
[1761911209436,0.0076654,109860.0,109850.0,0.18009651]
[1761911210303,0.03503033,109860.0,109850.0,0.18009651]
[1761911210479,0.16246524,109860.0,109850.0,0.18009651]
[1761911213714,0.03503033,109860.0,109850.0,0.18009651]
[1761911220150,0.03503033,109860.0,109850.0,0.64607665]
[1761911220353,0.0076654,109860.0,109850.0,0.57473107]
[1761911220764,0.0076654,109860.0,109850.0,0.66455008]
[1761911221571,0.0026654,109860.0,109850.0,0.66355008]
[1761911222011,0.0036654,109860.0,109850.0,0.66355008]
[1761911222417,0.0026654,109860.0,109850.0,0.66355008]
[1761911223219,0.0006654,109860.0,109850.0,0.66355008]
[1761911225626,0.0006654,109860.0,109850.0,0.26891552]
[1761911225829,0.0006654,109860.0,109850.0,0.66355008]
[1761911229623,0.0006654,109860.0,109850.0,1.54748464]
[1761911229831,0.0006654,109860.0,109850.0,1.57484114]
[1761911230306,1e-08,109860.0,109850.0,1.97947569]
[1761911230699,1e-08,109860.0,109850.0,1.98947568]
[1761911230900,0.00100001,109860.0,109850.0,1.99447568]
[1761911231165,1e-08,109860.0,109850.0,1.99447568]
[1761911231364,1e-08,109860.0,109850.0,2.03065796]
[1761911231515,1e-08,109860.0,109850.0,2.03165796]
[1761911231699,1e-08,109860.0,109850.0,2.03265796]
[1761911231901,1e-08,109860.0,109850.0,1.60184112]
[1761911232102,1e-08,109860.0,109850.0,1.60084112]
[1761911232558,8.8e-05,109870.0,109860.0,0.4774349]
[1761911232758,8.8e-05,109870.0,109860.0,1.40840303]
[1761911233322,8.8e-05,109870.0,109860.0,1.41205012]
[1761911234075,0.001088,109870.0,109860.0,1.41805012]
[1761911234837,0.001088,109870.0,109860.0,1.41905012]
[1761911235267,0.001088,109870.0,109860.0,1.81368468]
[1761911237024,0.001088,109870.0,109860.0,1.96298468]
[1761911238010,0.001088,109870.0,109860.0,1.56835012]
[1761911238218,0.00130975,109870.0,109860.0,1.56835012]
[1761911238756,0.00130975,109870.0,109860.0,0.779081]
[1761911238959,0.00130975,109870.0,109860.0,1.56835012]
[1761911244242,0.00130975,109870.0,109860.0,1.96298468]
[1761911246378,0.00130975,109870.0,109860.0,1.99916696]
[1761911246813,0.0002,109880.0,109870.0,1.26669242]
[1761911247017,0.00068315,109880.0,109870.0,1.55726143]
[1761911247399,0.00090487,109880.0,109870.0,1.55726143]
[1761911247706,0.00090487,109880.0,109870.0,1.56090784]
[1761911247904,1e-08,109880.0,109870.0,1.56090784]
[1761911248414,1e-08,109880.0,109870.0,1.56190784]
[1761911248571,1e-08,109880.0,109870.0,1.56390784]
[1761911248988,1e-08,109880.0,109870.0,1.56190784]
[1761911249397,1e-08,109880.0,109870.0,1.97254239]
[1761911249623,1e-08,109880.0,109870.0,0.78763871]
[1761911250026,1e-08,109880.0,109870.0,0.78963871]
[1761911250616,2.0,109930.0,109920.0,0.12736535]
[1761911250829,2.00014491,109930.0,109920.0,0.15453535]
[1761911251044,0.00014491,109930.0,109920.0,0.17881535]
[1761911251264,0.00125297,109930.0,109920.0,0.25006531]
[1761911251471,0.00125297,109930.0,109920.0,0.27741136]
[1761911252117,0.00925297,109930.0,109920.0,0.27741136]
[1761911252331,0.00925297,109930.0,109920.0,0.36723037]
[1761911252545,0.5312413,109930.0,109920.0,0.15004601]
[1761911252712,0.1451041,109930.0,109910.0,0.16332964]
[1761911252872,0.14199604,109930.0,109910.0,0.16332964]
[1761911253085,0.52199991,109920.0,109910.0,0.05451809]
[1761911253293,0.52199991,109920.0,109910.0,0.15454694]
[1761911253502,0.39463456,109920.0,109910.0,0.17882694]
[1761911254218,0.13250144,109930.0,109910.0,0.23245704]
[1761911254425,0.53463879,109930.0,109920.0,0.05145]
[1761911254734,0.53163879,109930.0,109920.0,0.05145]
[1761911255519,0.40328226,109930.0,109920.0,0.17881535]
[1761911255734,0.40828226,109930.0,109920.0,0.17881535]
[1761911256212,0.0136477,109930.0,109920.0,0.17881535]
[1761911258063,0.0136477,109930.0,109920.0,0.28682941]
[1761911258301,0.0136477,109930.0,109920.0,0.29597861]
[1761911258503,0.0136477,109930.0,109920.0,0.35152974]
[1761911258676,0.01475576,109930.0,109920.0,0.35152974]
[1761911261436,0.01475576,109930.0,109920.0,0.7461643]
[1761911261862,0.01475576,109930.0,109920.0,1.14079886]
[1761911262112,0.00625297,109930.0,109920.0,1.14079886]
[1761911262519,0.00225297,109930.0,109920.0,1.14079886]
[1761911262711,0.00125297,109930.0,109920.0,1.14079886]
[1761911262945,0.00225297,109930.0,109920.0,1.14079886]
[1761911264053,0.00125297,109930.0,109920.0,0.35152974]
[1761911264248,0.00125297,109930.0,109920.0,0.7461643]
[1761911264447,0.00125297,109930.0,109920.0,0.7471643]
[1761911265414,0.00125297,109930.0,109920.0,0.35252974]
[1761911266093,0.00125297,109930.0,109920.0,0.74656053]
[1761911266624,0.00125297,109930.0,109920.0,0.35252974]
[1761911268053,0.00125297,109930.0,109920.0,0.74656053]
[1761911268459,0.00125297,109930.0,109920.0,0.35252974]
[1761911268883,0.00125297,109930.0,109920.0,0.74656053]
[1761911269765,0.00125297,109930.0,109920.0,0.35252974]
[1761911271987,0.00125297,109930.0,109920.0,0.74656053]
[1761911274141,0.00125297,109930.0,109920.0,0.35252974]
[1761911274357,0.00125297,109930.0,109920.0,0.74656053]
[1761911276919,0.00125297,109930.0,109920.0,1.08656053]
[1761911278594,0.00125297,109930.0,109920.0,0.69252974]
[1761911278796,0.00125297,109930.0,109920.0,1.08656053]
[1761911283024,0.00125297,109930.0,109920.0,1.48059132]
[1761911284616,0.00125297,109930.0,109920.0,1.63989131]
[1761911285480,1e-08,109930.0,109920.0,1.63989131]
[1761911286269,1e-08,109930.0,109920.0,1.67507359]
[1761911286457,1e-08,109930.0,109920.0,1.71650375]
[1761911287356,1e-08,109930.0,109920.0,4.68807358]
[1761911287615,1e-08,109930.0,109920.0,5.08010437]
[1761911287815,1e-08,109930.0,109920.0,5.08210437]
[1761911288005,1e-08,109930.0,109920.0,4.68907358]
[1761911288357,1e-08,109930.0,109920.0,5.08310437]
[1761911288738,0.00871983,110020.0,109930.0,0.09606]
[1761911288944,0.06683628,110050.0,110040.0,0.12722646]
[1761911289073,0.01961065,110060.0,110050.0,3.0]
[1761911289280,0.05048017,110130.0,110090.0,0.13625121]
[1761911289487,0.05048017,110130.0,110090.0,0.15441816]
[1761911289488,0.00717,110120.0,110090.0,0.15441816]
[1761911289695,0.01081132,110120.0,110100.0,0.03581]
[1761911289880,0.01081132,110120.0,110100.0,0.0539753]
[1761911290087,0.01509,110110.0,110100.0,0.02806]
[1761911290315,0.01509,110110.0,110090.0,0.52119548]
[1761911290516,0.01509,110100.0,110090.0,0.18002996]
[1761911290752,2.0,110110.0,110100.0,0.12715582]
[1761911290872,2.02284,110110.0,110090.0,0.15272816]
[1761911291079,0.51705181,110120.0,110100.0,0.12715712]
[1761911291370,0.51705181,110120.0,110100.0,0.16786712]
[1761911291371,0.002,110110.0,110100.0,0.16786712]
[1761911291540,0.002,110110.0,110100.0,0.24120613]
[1761911291743,0.002,110110.0,110100.0,0.25768613]
[1761911292066,2.50717,110120.0,110110.0,0.12714558]
[1761911292277,2.0,110120.0,110110.0,0.26925459]
[1761911292779,2.0,110120.0,110110.0,0.26025459]
[1761911293397,0.003,110120.0,110110.0,0.26025459]
[1761911293560,0.01809,110120.0,110110.0,0.23602459]
[1761911293778,0.01509,110120.0,110110.0,0.14620558]
[1761911293970,2.54893,110120.0,110100.0,0.13935712]
[1761911294173,0.02304,110110.0,110100.0,0.15478712]
[1761911294350,0.37384,110120.0,110110.0,0.12714558]
[1761911294351,0.011,110120.0,110110.0,0.12714558]
[1761911294736,0.009,110120.0,110110.0,0.16580558]
[1761911294934,0.02907238,110120.0,110110.0,0.14257558]
[1761911295130,0.02207238,110120.0,110110.0,0.12714558]
[1761911295580,0.02507238,110120.0,110110.0,0.12714558]
[1761911295788,2.0,110110.0,110100.0,0.22917613]
[1761911295994,2.01587,110110.0,110100.0,0.15478712]
[1761911296203,0.01587,110110.0,110100.0,0.15478712]
[1761911296413,0.52784,110120.0,110110.0,0.12714558]
[1761911296414,0.005,110120.0,110110.0,0.12714558]
[1761911296618,0.002,110120.0,110110.0,0.25562459]
[1761911296832,0.04154509,110130.0,110110.0,0.94145183]
[1761911297033,0.04154509,110130.0,110120.0,0.18395603]
[1761911297236,0.04154509,110130.0,110120.0,0.18195603]
[1761911297444,0.04154509,110130.0,110120.0,0.25361304]
[1761911298487,0.04354509,110130.0,110120.0,0.25361304]
[1761911298910,0.04154509,110130.0,110120.0,0.25361304]
[1761911299325,0.04354509,110130.0,110120.0,0.25361304]
[1761911299938,0.05205509,110130.0,110120.0,0.23038304]
[1761911300130,0.04354509,110130.0,110120.0,0.25394304]
[1761911303239,0.04354509,110130.0,110120.0,0.93977028]
[1761911303645,0.02296824,110130.0,110120.0,1.27977028]
[1761911303877,0.02296824,110130.0,110120.0,4.27977028]
[1761911304245,0.02296824,110130.0,110120.0,3.60394303]
[1761911304449,0.02096824,110130.0,110120.0,4.28977027]
[1761911304650,0.02096824,110130.0,110120.0,4.29077027]
[1761911304846,0.02096824,110130.0,110120.0,4.29577027]
[1761911305047,0.00750069,110160.0,110150.0,0.1270994]
[1761911305259,0.00750069,110160.0,110150.0,0.25892546]
[1761911305459,0.00750069,110160.0,110150.0,0.26432841]
[1761911306842,0.00750069,110160.0,110150.0,0.26532841]
[1761911307458,0.00750069,110160.0,110150.0,4.34133792]
[1761911307690,0.00750069,110160.0,110150.0,1.30515564]
[1761911308707,0.1228536,110220.0,110190.0,0.12705048]
[1761911308907,0.12703021,110210.0,110190.0,0.12705048]
[1761911309313,0.0155,110200.0,110190.0,0.14308048]
[1761911310355,0.0155,110200.0,110180.0,0.13613141]
[1761911310535,0.0155,110190.0,110180.0,0.15216141]
[1761911310774,0.0155,110190.0,110180.0,0.13613141]
[1761911311405,0.0155,110190.0,110150.0,0.17127839]
[1761911311406,0.0155,110180.0,110150.0,0.17127839]
[1761911311611,2.0,110180.0,110170.0,0.12707633]
[1761911311830,2.02276,110180.0,110170.0,0.12707633]
[1761911312042,0.03826,110180.0,110170.0,0.12707633]
[1761911312645,0.03874267,110180.0,110170.0,0.12707633]
[1761911312876,1.14785397,110200.0,110170.0,0.12707633]
[1761911313083,0.0155,110180.0,110170.0,0.15552633]
[1761911313290,0.03360633,110180.0,110170.0,0.15552633]
[1761911313707,0.03460633,110180.0,110170.0,0.15552633]
[1761911313913,0.03560633,110180.0,110170.0,0.15552633]
[1761911314333,0.03560633,110180.0,110170.0,0.14310633]
[1761911314548,0.03560633,110180.0,110170.0,0.12707633]
[1761911314763,0.16267126,110180.0,110160.0,0.13614465]
[1761911314963,0.03560633,110180.0,110170.0,0.12707633]
[1761911315385,0.03560633,110180.0,110170.0,0.14310633]
[1761911315592,0.03560633,110180.0,110170.0,0.15552633]
[1761911316001,0.03460633,110180.0,110170.0,0.15552633]
[1761911316617,0.03360633,110180.0,110170.0,0.15552633]
[1761911316946,0.03460633,110180.0,110170.0,0.15552633]
[1761911317350,0.01910633,110180.0,110170.0,0.15552633]
[1761911317593,0.615457,110200.0,110190.0,0.12705327]
[1761911317594,0.00014471,110200.0,110190.0,0.12705327]
[1761911317792,0.01564471,110200.0,110190.0,0.14308327]
[1761911318235,0.01564471,110200.0,110190.0,0.01603]
[1761911318646,0.00014471,110200.0,110190.0,0.25646228]
[1761911318859,0.01564471,110200.0,110190.0,0.23290228]
[1761911319245,0.01564471,110200.0,110190.0,0.25687702]
[1761911319246,0.02409415,110200.0,110190.0,0.25687702]
[1761911320828,0.02409415,110200.0,110190.0,0.25887702]
[1761911321255,0.17389589,110200.0,110190.0,0.02597474]
[1761911321455,2.86072313,110200.0,110190.0,0.002]
[1761911321656,2.17489589,110200.0,110190.0,0.002]
[1761911321861,2.17544161,110200.0,110190.0,0.002]
[1761911322887,2.17644161,110200.0,110190.0,0.002]
[1761911323091,2.17644161,110200.0,110180.0,0.15903013]
[1761911323092,2.0,110190.0,110180.0,0.15903013]
[1761911323263,0.0155,110190.0,110180.0,0.17506013]
[1761911323470,0.00132502,110190.0,110180.0,0.19862013]
[1761911324239,0.00132502,110190.0,110180.0,0.17506013]
[1761911324386,0.00132502,110190.0,110180.0,0.19860013]
[1761911324585,0.00132502,110190.0,110180.0,0.07153632]
[1761911324792,0.14483829,110190.0,110180.0,0.04799632]
[1761911324992,2.66861829,110190.0,110180.0,0.03196632]
[1761911325217,0.1270648,110180.0,110170.0,0.03196632]
[1761911325418,2.0,110180.0,110170.0,0.19435265]
[1761911325635,2.0,110180.0,110170.0,0.20947265]
[1761911325839,0.1435248,110180.0,110170.0,0.03196632]
[1761911326043,0.6131714,110180.0,110170.0,0.03196632]
[1761911326242,0.6131714,110180.0,110160.0,0.0799158]
[1761911326243,0.12707633,110170.0,110160.0,0.0799158]
[1761911326451,0.12708787,110160.0,110150.0,0.0799158]
[1761911326649,0.16732787,110160.0,110150.0,0.0799158]
[1761911326866,0.16732787,110160.0,110150.0,0.03196632]
[1761911327499,0.16732787,110160.0,110140.0,0.18532924]
[1761911327713,0.59673447,110160.0,110150.0,0.00048267]
[1761911328215,0.61319447,110160.0,110150.0,0.00048267]
[1761911328421,0.01646,110160.0,110150.0,0.14270207]
[1761911328626,0.01646,110160.0,110150.0,0.14370207]
[1761911328833,0.01646,110160.0,110150.0,0.15447207]
[1761911329207,0.01746,110160.0,110150.0,0.15447207]
[1761911329410,0.14454787,110160.0,110150.0,0.15447207]
[1761911329619,0.01746,110160.0,110150.0,0.15447207]
[1761911329821,0.14454787,110160.0,110150.0,0.01560267]
[1761911330013,0.14654787,110160.0,110150.0,0.01560267]
[1761911330421,0.61619447,110160.0,110150.0,0.00048267]
[1761911330655,0.17881326,110160.0,110150.0,0.00048267]
[1761911331072,0.17099056,110160.0,110150.0,0.00048267]
[1761911331255,0.17947841,110160.0,110150.0,0.00048267]
[1761911332188,2.82831712,110160.0,110150.0,0.00048267]
[1761911332400,3.0923463,110160.0,110150.0,0.00048267]
[1761911336216,2.6454797,110160.0,110150.0,0.00048267]
[1761911336629,3.0913463,110160.0,110150.0,0.00048267]
[1761911337396,2.6454797,110160.0,110150.0,0.00048267]
[1761911339774,3.05516402,110160.0,110150.0,0.00048267]
[1761911339983,3.0913463,110160.0,110150.0,0.00048267]
[1761911340323,3.0923463,110160.0,110150.0,0.00048267]
[1761911340524,3.0913463,110160.0,110150.0,0.00048267]
[1761911341589,2.02861054,110160.0,110150.0,0.02737267]
[1761911341806,0.00366269,110160.0,110150.0,0.05091267]
[1761911341983,0.64296973,110180.0,110150.0,0.26783108]
[1761911341984,0.12469165,110180.0,110150.0,0.26783108]
[1761911342219,0.1361542,110170.0,110150.0,0.26783108]
[1761911342573,0.14463295,110170.0,110150.0,0.26783108]
[1761911342574,0.10091165,110180.0,110170.0,0.01512]
[1761911342916,0.10091165,110180.0,110170.0,0.02689]
[1761911342917,0.10939009,110180.0,110170.0,0.02689]
[1761911343078,0.12585009,110180.0,110170.0,0.02689]
[1761911343283,0.13285009,110180.0,110170.0,0.02689]
[1761911343466,0.03193844,110180.0,110170.0,0.15396633]
[1761911344154,0.01747844,110180.0,110170.0,0.19566009]
[1761911344320,0.01547844,110180.0,110170.0,0.19566009]
[1761911344531,0.6433397,110190.0,110180.0,0.1270648]
[1761911344532,0.00721,110190.0,110180.0,0.1270648]
[1761911344727,0.00721,110190.0,110180.0,0.1657248]
[1761911344958,0.63855369,110210.0,110190.0,0.12705327]
[1761911345104,0.03618228,110200.0,110190.0,0.15394327]
[1761911345309,0.00847746,110200.0,110190.0,0.15394327]
[1761911345521,2.00847595,110210.0,110200.0,0.12704174]
[1761911345749,0.00847595,110210.0,110200.0,0.16479369]
[1761911345950,2.0,110210.0,110200.0,0.16479369]
[1761911346270,0.00862066,110210.0,110200.0,0.16479369]
[1761911346469,0.00862066,110210.0,110200.0,0.16570174]
[1761911347028,0.00862066,110210.0,110200.0,0.18385056]
[1761911347228,0.00014471,110210.0,110200.0,0.18385056]
[1761911347785,0.14363492,110210.0,110200.0,0.001]
[1761911348013,0.00014471,110210.0,110200.0,0.03966]
[1761911348157,0.00014471,110210.0,110200.0,0.16670174]
[1761911348364,0.00014471,110210.0,110200.0,0.16570174]
[1761911348567,0.00014471,110210.0,110200.0,0.16870174]
[1761911349084,0.00014471,110210.0,110200.0,0.04166]
[1761911349085,0.12717492,110210.0,110200.0,0.04166]
[1761911349287,0.00014471,110210.0,110200.0,0.16870174]
[1761911350502,0.00014471,110210.0,110200.0,0.18685056]
[1761911351135,0.00014471,110210.0,110200.0,0.16870174]
[1761911351788,0.00014471,110210.0,110200.0,0.04166]
[1761911352018,0.00014471,110210.0,110200.0,0.16870174]
[1761911352720,0.00014471,110210.0,110200.0,0.25852075]
[1761911352991,0.00014471,110210.0,110200.0,0.70438735]
[1761911353238,0.00014471,110210.0,110200.0,0.25852075]
[1761911353671,0.00124855,110210.0,110200.0,0.25852075]
[1761911355563,0.00124855,110210.0,110200.0,0.16870174]
[1761911355816,0.12827876,110210.0,110200.0,0.04166]
[1761911356030,0.00124855,110210.0,110200.0,0.16870174]
[1761911356247,0.12827876,110210.0,110200.0,0.16870174]
[1761911356871,0.12827876,110210.0,110200.0,0.04166]
[1761911357072,0.12827876,110210.0,110200.0,0.16870174]
[1761911357708,0.00124855,110210.0,110200.0,0.16870174]
[1761911358681,0.12827876,110210.0,110200.0,0.16870174]
[1761911358913,0.00124855,110210.0,110200.0,0.16870174]
[1761911359746,0.12827876,110210.0,110200.0,0.16870174]
[1761911359959,0.00124855,110210.0,110200.0,0.16870174]
[1761911360171,0.12827876,110210.0,110200.0,0.16870174]
[1761911360385,0.00124855,110210.0,110200.0,0.16870174]
[1761911361178,0.12827876,110210.0,110200.0,0.04166]
[1761911361414,0.12827876,110210.0,110200.0,0.16870174]
[1761911363417,0.00124855,110210.0,110200.0,0.16870174]
[1761911363629,0.12827876,110210.0,110200.0,0.16870174]
[1761911364047,0.00124855,110210.0,110200.0,0.16870174]
[1761911367875,0.00124855,110210.0,110200.0,0.28854957]
[1761911368083,0.00124855,110210.0,110200.0,0.27040075]
[1761911372632,0.00124855,110210.0,110200.0,0.71626735]
[1761911372802,0.00124855,110210.0,110200.0,0.27040075]
[1761911373260,0.00124855,110210.0,110200.0,0.71626735]
[1761911374613,0.00124855,110210.0,110200.0,0.27040075]
[1761911375372,0.00124855,110210.0,110200.0,0.71626735]
[1761911375585,0.00124855,110210.0,110200.0,0.27040075]
[1761911379738,0.00124855,110210.0,110200.0,0.78127714]
[1761911382977,0.00124855,110210.0,110200.0,1.58339619]
[1761911383755,0.00124855,110210.0,110200.0,1.58039619]
[1761911384182,0.00124855,110210.0,110200.0,1.15052959]
[1761911384321,0.00124855,110210.0,110200.0,1.13419841]
[1761911384748,0.00124855,110210.0,110200.0,1.58006501]
[1761911384932,0.00124855,110210.0,110200.0,1.58039619]
[1761911385327,0.00124855,110210.0,110200.0,1.38277501]
[1761911385552,1e-08,110210.0,110200.0,1.38277501]
[1761911385754,1e-08,110210.0,110200.0,1.392775]
[1761911385927,2.0,110250.0,110240.0,0.12699564]
[1761911386127,2.0,110260.0,110250.0,0.15333412]
[1761911386334,0.00014462,110260.0,110250.0,0.26813313]
[1761911387331,0.00014462,110260.0,110250.0,0.17831412]
[1761911387759,0.00114462,110260.0,110250.0,0.17831412]
[1761911388037,0.00414462,110260.0,110250.0,0.17831412]
[1761911388668,0.00114462,110260.0,110250.0,0.17831412]
[1761911388988,0.00014462,110260.0,110250.0,0.17831412]
[1761911389437,0.00114462,110260.0,110250.0,0.17831412]
[1761911389648,0.00014462,110260.0,110250.0,0.17831412]
[1761911389833,0.13011723,110260.0,110250.0,0.17831412]
[1761911390040,0.00314462,110260.0,110250.0,0.17931412]
[1761911390461,0.00014462,110260.0,110250.0,0.17931412]
[1761911390659,0.12711723,110260.0,110250.0,0.18331412]
[1761911390878,0.00014462,110260.0,110250.0,0.18331412]
[1761911391086,0.12711723,110260.0,110250.0,0.18331412]
[1761911391453,0.00014462,110260.0,110250.0,0.18331412]
[1761911391632,0.12822031,110260.0,110250.0,0.18331412]
[1761911391836,0.0012477,110260.0,110250.0,0.18331412]
[1761911400993,0.0012477,110260.0,110250.0,0.27313313]
[1761911401483,0.0012477,110260.0,110250.0,0.95724515]
[1761911401900,0.0012477,110260.0,110250.0,0.27313313]
[1761911402537,0.0012477,110260.0,110250.0,0.005]
[1761911402538,0.16285031,110260.0,110250.0,0.005]
[1761911402744,2.84696233,110260.0,110250.0,0.005]
[1761911402964,2.97396362,110260.0,110250.0,0.005]
[1761911403168,2.2898516,110260.0,110250.0,0.005]
[1761911403381,0.12700716,110230.0,110220.0,0.0111]
[1761911403600,0.15193716,110230.0,110220.0,0.02635]
[1761911403798,0.15237851,110230.0,110220.0,0.02635]
[1761911404012,0.12701868,110220.0,110210.0,0.03739]
[1761911404219,0.14224868,110220.0,110210.0,0.02766]
[1761911404430,0.14189157,110220.0,110210.0,0.01241]
[1761911404629,0.14189157,110220.0,110200.0,0.16443174]
[1761911404856,0.14226021,110210.0,110200.0,0.02766]
[1761911405058,0.12704174,110200.0,110190.0,0.14850978]
[1761911405234,0.14227174,110200.0,110190.0,0.00921994]
[1761911405433,0.01523,110200.0,110190.0,0.00014471]
[1761911405649,0.01523,110200.0,110190.0,0.01539471]
[1761911405851,0.01523,110200.0,110190.0,0.14244798]
[1761911405995,0.14227174,110200.0,110190.0,0.14244798]
[1761911406200,0.01523,110200.0,110190.0,0.14244798]
[1761911406401,0.01523,110200.0,110190.0,0.14344798]
[1761911406749,2.0,110210.0,110200.0,0.12704174]
[1761911406964,0.63573433,110220.0,110200.0,0.16727174]
[1761911406965,0.13573433,110220.0,110200.0,0.16727174]
[1761911407178,0.1457791,110230.0,110210.0,0.17967021]
[1761911407409,0.23559811,110230.0,110210.0,0.17967021]
[1761911407818,0.25499811,110230.0,110210.0,0.17967021]
[1761911407995,0.14224868,110220.0,110200.0,0.17350615]
[1761911408408,0.14224868,110220.0,110210.0,0.01525]
[1761911408592,0.14224868,110220.0,110210.0,0.14228021]
[1761911409094,0.23659811,110230.0,110210.0,0.14228021]
[1761911409315,0.003,110220.0,110210.0,0.16726021]
[1761911409698,0.14224868,110220.0,110210.0,0.01525]
[1761911410096,0.14546937,110220.0,110200.0,0.14852615]
[1761911410338,0.01523,110210.0,110200.0,0.16377615]
[1761911410543,0.01845069,110220.0,110210.0,0.14228021]
[1761911410945,0.14546937,110220.0,110210.0,0.01525]
[1761911411147,0.14246937,110220.0,110210.0,0.01525]
[1761911411352,0.12703021,110210.0,110190.0,0.13627321]
[1761911411557,0.14226021,110210.0,110190.0,0.16125321]
[1761911411755,0.14226021,110210.0,110200.0,0.01525]
[1761911412057,0.15671213,110220.0,110200.0,0.16727174]
[1761911412058,0.13631213,110220.0,110200.0,0.16727174]
[1761911412287,0.12703021,110210.0,110200.0,0.16727174]
[1761911412497,0.14226021,110210.0,110200.0,0.01525]
[1761911412933,0.14226021,110210.0,110190.0,0.1521755]
[1761911413340,0.14226021,110210.0,110200.0,0.14229174]
[1761911413565,0.14226021,110210.0,110200.0,0.14329174]
[1761911413941,0.14226021,110210.0,110200.0,0.01525]
[1761911414340,0.14226021,110210.0,110200.0,0.14229174]
[1761911414538,0.14226021,110210.0,110200.0,0.01525]
[1761911414952,0.14226021,110210.0,110200.0,0.001]
[1761911415356,0.14226021,110210.0,110200.0,0.003]
[1761911415565,0.14226021,110210.0,110200.0,0.01862]
[1761911416923,0.16166021,110210.0,110200.0,0.003]
[1761911417512,0.14226021,110210.0,110200.0,0.003]
[1761911417744,0.14226021,110210.0,110200.0,0.002]
[1761911417946,0.14226021,110210.0,110200.0,0.01527]
[1761911418803,0.14226021,110210.0,110190.0,0.15150781]
[1761911419224,0.16166021,110210.0,110190.0,0.15150781]
[1761911419441,0.12704174,110200.0,110190.0,0.15150781]
[1761911419654,0.12704174,110200.0,110190.0,0.00014471]
[1761911419655,0.16202174,110200.0,110190.0,0.00014471]
[1761911419861,0.14262174,110200.0,110190.0,0.00014471]
[1761911420087,0.14262174,110200.0,110190.0,0.01541471]
[1761911420496,0.12704174,110200.0,110190.0,0.01541471]
[1761911420701,0.12704174,110200.0,110190.0,0.16677798]
[1761911422855,0.14262174,110200.0,110190.0,0.03972471]
[1761911423253,0.08021445,110210.0,110190.0,0.16677798]
[1761911423458,0.08321445,110210.0,110190.0,0.16677798]
[1761911423754,0.12704174,110200.0,110190.0,0.16677798]
[1761911424626,0.12704174,110200.0,110190.0,0.03972471]
[1761911424936,0.14262174,110200.0,110190.0,0.01541471]
[1761911425735,0.08991445,110210.0,110190.0,0.17886798]
[1761911425969,0.17973346,110210.0,110190.0,0.17886798]
[1761911426181,0.12704174,110200.0,110190.0,0.05181471]
[1761911428478,0.14262174,110200.0,110190.0,0.02750471]
[1761911429080,0.14262174,110200.0,110190.0,0.00014471]
[1761911429081,0.16202174,110200.0,110190.0,0.00014471]
[1761911429540,0.14262174,110200.0,110190.0,0.01541471]